fUST/lending_fUST_20240327
["ID","MTS","AMOUNT","RATE_DAILY","PERIOD"]
[320660320,1711488649559,-408.3732332,0.00022779,2]
[320660321,1711488649568,-166.666666,0.00022944,2]
[320660322,1711488649577,-167.709251,0.00023288,2]
[320660323,1711488649585,-206.875072,0.00023371,2]
[320660324,1711488649595,-167.069711,0.00023371,2]
[320660325,1711488649604,-166.666666,0.00023456,2]
[320660326,1711488649613,-3627.303557,0.00023483,2]
[320660327,1711488649622,-151.01057074,0.00023647,2]
[320660328,1711488649631,-250.50841559,0.00023647,2]
[320660329,1711488649640,-2000.0,0.00023723,2]
[320660330,1711488649648,-39255.2717,0.00023789,30]
[320660331,1711488649657,-654.35377202,0.000239,2]
[320660332,1711488649666,-166.666666,0.00023969,2]
[320660333,1711488649675,-2000.0,0.00024,2]
[320660334,1711488649685,-302.02114148,0.00024044,4]
[320660335,1711488649694,-500.0,0.00024361,2]
[320660336,1711488649702,-500.0,0.00024361,2]
[320660337,1711488649712,-500.0,0.00024361,2]
[320660338,1711488649721,-407.85245089,0.00024361,2]
[320660339,1711488649730,-604.04228296,0.00024448,7]
[320660340,1711488649739,-166.666666,0.00024482,2]
[320660341,1711488649747,-500.0,0.00024657,2]
[320660342,1711488649756,-500.0,0.00024657,2]
[320660343,1711488649765,-500.0,0.00024657,2]
[320660344,1711488649774,-508.82887129,0.00024657,2]
[320660345,1711488649784,-567.37,0.00024657,2]
[320660346,1711488649793,-500.0,0.00024657,2]
[320660347,1711488649802,-500.0,0.00024657,2]
[320660348,1711488649811,-500.0,0.00024657,2]
[320660350,1711488649821,-500.0,0.00024657,2]
[320660351,1711488649830,-500.0,0.00024657,2]
[320660353,1711488649841,-500.0,0.00024657,2]
[320660364,1711488649937,-500.0,0.00024657,2]
[320660366,1711488649946,-540.84788608,0.00024657,2]
[320660368,1711488649955,-831.97,0.00024657,2]
[320660370,1711488649965,-500.0,0.00024657,2]
[320660372,1711488649975,-500.0,0.00024657,2]
[320660374,1711488649984,-500.0,0.00024657,2]
[320660376,1711488649993,-500.0,0.00024657,2]
[320660379,1711488650002,-500.0,0.00024657,2]
[320660380,1711488650012,-500.0,0.00024657,2]
[320660383,1711488650022,-500.0,0.00024657,2]
[320660384,1711488650032,-500.0,0.00024657,2]
[320660387,1711488650042,-628.15,0.00024657,2]
[320660389,1711488650052,-519.53,0.00024657,2]
[320660391,1711488650062,-500.0,0.00024657,2]
[320660392,1711488650072,-500.0,0.00024657,2]
[320660394,1711488650082,-500.0,0.00024657,2]
[320660396,1711488650092,-500.0,0.00024657,2]
[320660399,1711488650103,-500.0,0.00024657,2]
[320660400,1711488650112,-610.04,0.00024657,2]
[320660402,1711488650122,-663.34,0.00024657,2]
[320660404,1711488650131,-907.44,0.00024657,2]
[320660407,1711488650141,-500.0,0.00024657,2]
[320660408,1711488650150,-500.0,0.00024657,2]
[320660410,1711488650159,-500.0,0.00024657,2]
[320660413,1711488650169,-507.47,0.00024657,2]
[320660414,1711488650178,-500.0,0.00024657,2]
[320660417,1711488650188,-673.02,0.00024657,2]
[320660419,1711488650197,-500.0,0.00024657,2]
[320660420,1711488650207,-2812.99,0.00024657,2]
[320660422,1711488650218,-500.0,0.00024657,2]
[320660424,1711488650230,-500.0,0.00024657,2]
[320660426,1711488650240,-500.0,0.00024657,2]
[320660428,1711488650249,-500.0,0.00024657,2]
[320660430,1711488650258,-500.0,0.00024657,2]
[320660432,1711488650269,-559.75,0.00024657,2]
[320660434,1711488650278,-500.0,0.00024657,2]
[320660436,1711488650288,-500.0,0.00024657,2]
[320660438,1711488650298,-513.9,0.00024657,2]
[320660440,1711488650309,-500.0,0.00024657,2]
[320660442,1711488650319,-500.0,0.00024657,2]
[320660444,1711488650328,-590.09,0.00024657,2]
[320660446,1711488650337,-674.85,0.00024657,2]
[320660448,1711488650348,-500.0,0.00024657,2]
[320660450,1711488650358,-500.0,0.00024657,2]
[320660452,1711488650367,-662.7,0.00024657,2]
[320660454,1711488650377,-702.82,0.00024657,2]
[320660456,1711488650387,-500.0,0.00024657,2]
[320660458,1711488650397,-1065.45,0.00024657,2]
[320660460,1711488650406,-500.0,0.00024657,2]
[320660462,1711488650416,-500.0,0.00024657,2]
[320660464,1711488650425,-552.22,0.00024657,2]
[320660466,1711488650435,-500.0,0.00024657,2]
[320660468,1711488650446,-735.24,0.00024657,2]
[320660471,1711488650456,-620.31514983,0.00024657,2]
[320660473,1711488650465,-552.13,0.00024657,2]
[320660475,1711488650474,-784.81,0.00024657,2]
[320660476,1711488650484,-178.08530001,0.00024657,2]
[320660478,1711488650494,-606.54,0.00024657,2]
[320660481,1711488650503,-1058.27,0.00024657,2]
[320660482,1711488650513,-641.66,0.00024657,2]
[320660485,1711488650523,-500.0,0.00024657,2]
[320660487,1711488650533,-526.79995594,0.00024657,2]
[320660488,1711488650542,-500.0,0.00024657,2]
[320660490,1711488650551,-622.62,0.00024657,2]
[320660493,1711488650561,-986.62,0.00024657,2]
[320660494,1711488650570,-269.36768487,0.00024657,2]
[320660496,1711488650580,-500.0,0.00024657,2]
[320660499,1711488650590,-778.03,0.00024657,2]
[320660500,1711488650599,-500.0,0.00024657,2]
[320660502,1711488650609,-1787.56,0.00024657,2]
[320660504,1711488650619,-500.0,0.00024657,2]
[320660506,1711488650629,-603.18211614,0.00024657,2]
[320660509,1711488650638,-500.0,0.00024657,2]
[320660511,1711488650648,-2543.67,0.00024657,2]
[320660513,1711488650657,-529.32,0.00024657,2]
[320660514,1711488650666,-1178.86,0.00024657,2]
[320660516,1711488650675,-2875.62,0.00024657,2]
[320660518,1711488650685,-566.9,0.00024657,2]
[320660521,1711488650696,-155.65011993,0.00024657,2]
[320660523,1711488650706,-509.47,0.00024657,2]
[320660524,1711488650717,-549.71585919,0.00024657,2]
[320660527,1711488650728,-2581.11,0.00024657,2]
[320660529,1711488650738,-641.01,0.00024657,2]
[320660531,1711488650749,-242.11848457,0.00024657,2]
[320660533,1711488650759,-581.19,0.00024657,2]
[320660535,1711488650769,-544.14,0.00024657,2]
[320660537,1711488650780,-621.61,0.00024657,2]
[320660539,1711488650790,-500.0,0.00024657,2]
[320660540,1711488650800,-1445.47,0.00024657,2]
[320660542,1711488650809,-500.0,0.00024657,2]
[320660545,1711488650819,-500.0,0.00024657,2]
[320660546,1711488650830,-2776.01,0.00024657,2]
[320660549,1711488650841,-500.0,0.00024657,2]
[320660550,1711488650851,-500.0,0.00024657,2]
[320660552,1711488650860,-500.0,0.00024657,2]
[320660554,1711488650869,-500.0,0.00024657,2]
[320660556,1711488650879,-500.0,0.00024657,2]
[320660558,1711488650889,-500.0,0.00024657,2]
[320660560,1711488650898,-2295.01,0.00024657,2]
[320660562,1711488650908,-32518.68,0.00024657,2]
[320660564,1711488650917,-500.0,0.00024657,2]
[320660566,1711488650927,-261.63468076,0.00024657,2]
[320660568,1711488650936,-1834.71,0.00024657,2]
[320660570,1711488650945,-500.0,0.00024657,2]
[320660572,1711488650954,-1264.58,0.00024657,2]
[320660574,1711488650964,-7429.5,0.00024657,2]
[320660576,1711488650974,-500.0,0.00024657,2]
[320660578,1711488650983,-500.0,0.00024657,2]
[320660580,1711488650993,-500.0,0.00024657,2]
[320660582,1711488651002,-500.0,0.00024657,2]
[320660584,1711488651011,-500.0,0.00024657,2]
[320660586,1711488651021,-190.20948705,0.00024657,2]
[320660588,1711488651030,-5223.64,0.00024657,2]
[320660590,1711488651040,-500.0,0.00024657,2]
[320660592,1711488651050,-2561.79,0.00024657,2]
[320660595,1711488651059,-500.0,0.00024657,2]
[320660597,1711488651069,-2170.28,0.00024657,2]
[320660599,1711488651079,-778.4,0.00024657,2]
[320660600,1711488651089,-500.0,0.00024657,2]
[320660602,1711488651098,-500.0,0.00024657,2]
[320660605,1711488651108,-876.12,0.00024657,2]
[320660606,1711488651117,-500.0,0.00024657,2]
[320660608,1711488651127,-500.0,0.00024657,2]
[320660610,1711488651136,-512.43149271,0.00024657,2]
[320660612,1711488651145,-500.0,0.00024657,2]
[320660615,1711488651155,-500.0,0.00024657,2]
[320660617,1711488651165,-741.14,0.00024657,2]
[320660618,1711488651174,-6198.48,0.00024657,2]
[320660620,1711488651183,-296.92689803,0.00024657,2]
[320660622,1711488651193,-2183.93,0.00024657,2]
[320660624,1711488651202,-500.0,0.00024657,2]
[320660627,1711488651212,-500.0,0.00024657,2]
[320660629,1711488651224,-4160.26,0.00024657,2]
[320660631,1711488651234,-500.0,0.00024657,2]
[320660633,1711488651243,-500.0,0.00024657,2]
[320660635,1711488651252,-734.19,0.00024657,2]
[320660637,1711488651262,-650.79,0.00024657,2]
[320660639,1711488651271,-500.0,0.00024657,2]
[320660641,1711488651280,-500.0,0.00024657,2]
[320660643,1711488651289,-500.0,0.00024657,2]
[320660644,1711488651299,-228.93109243,0.00024657,2]
[320660646,1711488651308,-10681.84,0.00024657,2]
[320660648,1711488651317,-1244.94,0.00024657,2]
[320660650,1711488651327,-500.0,0.00024657,2]
[320660653,1711488651337,-500.0,0.00024657,2]
[320660654,1711488651346,-500.0,0.00024657,2]
[320660656,1711488651355,-500.0,0.00024657,2]
[320660658,1711488651365,-740.57,0.00024657,2]
[320660660,1711488651374,-2764.76,0.00024657,2]
[320660663,1711488651383,-500.0,0.00024657,2]
[320660664,1711488651393,-798.9,0.00024657,2]
[320660667,1711488651403,-707.69,0.00024657,2]
[320660668,1711488651412,-1159.9,0.00024657,2]
[320660671,1711488651421,-500.0,0.00024657,2]
[320660673,1711488651430,-500.0,0.00024657,2]
[320660675,1711488651439,-675.0,0.00024657,2]
[320660677,1711488651449,-32548.3,0.00024657,2]
[320660679,1711488651459,-500.0,0.00024657,2]
[320660680,1711488651468,-500.0,0.00024657,2]
[320660682,1711488651477,-524.92,0.00024657,2]
[320660684,1711488651487,-5514.23,0.00024657,2]
[320660686,1711488651497,-2400.11,0.00024657,2]
[320660688,1711488651506,-267.32878166,0.00024657,2]
[320660690,1711488651515,-520.73,0.00024657,2]
[320660693,1711488651525,-500.0,0.00024657,2]
[320660694,1711488651535,-500.0,0.00024657,2]
[320660697,1711488651545,-6015.77,0.00024657,2]
[320660699,1711488651554,-528.7,0.00024657,2]
[320660701,1711488651563,-3045.2,0.00024657,2]
[320660703,1711488651572,-500.0,0.00024657,2]
[320660705,1711488651581,-868.96,0.00024657,2]
[320660706,1711488651591,-500.0,0.00024657,2]
[320660709,1711488651601,-500.0,0.00024657,2]
[320660711,1711488651610,-1418.04,0.00024657,2]
[320660712,1711488651619,-500.0,0.00024657,2]
[320660715,1711488651628,-500.0,0.00024657,2]
[320660716,1711488651638,-500.0,0.00024657,2]
[320660718,1711488651647,-574.11,0.00024657,2]
[320660720,1711488651656,-500.0,0.00024657,2]
[320660722,1711488651665,-500.0,0.00024658,2]
[320660725,1711488651675,-200.0,0.00024658,2]
[320660726,1711488651685,-380.0,0.00024658,2]
[320660728,1711488651694,-151.53182002,0.0002485,2]
[320660731,1711488651704,-167.00561039,0.00024859,4]
[320660732,1711488651713,-1999.30309375,0.0002488,2]
[320660735,1711488651723,-160.0,0.00024975,3]
[320660736,1711488651732,-155.24367956,0.00025,2]
[320660739,1711488651741,-250.0,0.00025,2]
[320660741,1711488651750,-34195.20891849,0.00025,2]
[320660743,1711488651759,-721.61875251,0.00025,2]
[320660745,1711488651769,-1009.36873434,0.00025,2]
[320660747,1711488651777,-1208.08456592,0.00025067,30]
[320660749,1711488651786,-160.0,0.00025131,4]
[320660751,1711488651795,-1000.0,0.00025286,2]
[320660752,1711488651805,-160.0,0.00025286,5]
[320660755,1711488651814,-222.87908537,0.00025429,10]
[320660757,1711488651824,-916.85161867,0.00025429,2]
[320660759,1711488651833,-313.49174064,0.00025429,2]
[320660760,1711488651842,-279.3472348,0.00025429,2]
[320660762,1711488651852,-28518.77797134,0.00025429,2]
[320660774,1711488651945,-9877.57305349,0.00025429,2]
[320660776,1711488651955,-2968.05970614,0.00025429,2]
[320660778,1711488651964,-151.04588876,0.00025429,2]
[320660780,1711488651973,-500.24272307,0.00025429,2]
[320660782,1711488651982,-315.31021878,0.00025429,2]
[320660784,1711488651991,-24457.78169781,0.00025429,2]
[320660786,1711488652000,-577.70265007,0.00025429,2]
[320660788,1711488652009,-309.94218125,0.00025429,2]
[320660790,1711488652018,-219.87879907,0.00025429,2]
[320660792,1711488652027,-178336.06432455,0.00025429,2]
[320660794,1711488652036,-18402.17299597,0.00025429,2]
[320660796,1711488652045,-572.41669228,0.00025429,2]
[320660798,1711488652054,-998.0,0.00025429,10]
[320660800,1711488652063,-998.0,0.00025429,10]
[320660802,1711488652072,-998.0,0.00025429,10]
[320660804,1711488652081,-998.0,0.00025429,10]
[320660806,1711488652090,-998.0,0.00025429,10]
[320660808,1711488652099,-998.0,0.00025429,10]
[320660810,1711488652108,-998.0,0.00025429,10]
[320660812,1711488652117,-998.0,0.00025429,10]
[320660814,1711488652126,-998.0,0.00025429,10]
[320660816,1711488652135,-998.0,0.00025429,10]
[320660818,1711488652144,-998.0,0.00025429,10]
[320660820,1711488652153,-998.0,0.00025429,10]
[320660822,1711488652162,-998.0,0.00025429,10]
[320660824,1711488652171,-998.0,0.00025429,10]
[320660825,1711488652181,-998.0,0.00025429,10]
[320660827,1711488652190,-998.0,0.00025429,10]
[320660829,1711488652199,-998.0,0.00025429,10]
[320660831,1711488652208,-998.0,0.00025429,10]
[320660833,1711488652218,-998.0,0.00025429,10]
[320660835,1711488652228,-998.0,0.00025429,10]
[320660837,1711488652239,-998.0,0.00025429,10]
[320660839,1711488652249,-998.0,0.00025429,10]
[320660841,1711488652258,-998.0,0.00025429,10]
[320660843,1711488652268,-918.58764352,0.00025429,10]
[320660845,1711488652277,-998.0,0.00025429,10]
[320660847,1711488652286,-77235.31888405,0.00025429,2]
[320660849,1711488652295,-2440.92346758,0.00025429,2]
[320660851,1711488652305,-1000.31228372,0.00025429,2]
[320660853,1711488652314,-326.54499012,0.00025429,2]
[320660854,1711488652323,-76440.62547929,0.00025429,2]
[320660855,1711488652332,-300.0,0.00025429,2]
[320660856,1711488652343,-2849.92132835,0.00025429,3]
[320660857,1711488652352,-19880.78161174,0.00025429,2]
[320660858,1711488652361,-998.0,0.00025429,10]
[320660859,1711488652370,-998.0,0.00025429,10]
[320660860,1711488652379,-998.0,0.00025429,10]
[320660861,1711488652388,-996.0,0.00025429,10]
[320660862,1711488652398,-998.0,0.00025429,10]
[320660863,1711488652407,-9964.77000247,0.00025429,2]
[320660864,1711488652416,-151.88676171,0.00025429,2]
[320660865,1711488652425,-160.0,0.00025442,6]
[320660866,1711488652435,-2092.55785419,0.00025526,30]
[320660867,1711488652444,-1000.0,0.00025544,2]
[320660868,1711488652453,-160.0,0.00025598,7]
[320660869,1711488652463,-805.56338879,0.00025695,120]
[320660870,1711488652472,-151.88676171,0.00025707,2]
[320660871,1711488652481,-160.0,0.00025754,8]
[320660872,1711488652490,-200.0,0.00025771,120]
[320660873,1711488652500,-150.5,0.00025808,35]
[320660874,1711488652511,-150.5,0.00025818,35]
[320660875,1711488652522,-153.0,0.00025823,2]
[320660876,1711488652532,-150.5,0.00025828,35]
[320660877,1711488652542,-1000.0,0.00025842,2]
[320660878,1711488652552,-300.0,0.00025847,3]
[320660879,1711488652562,-160.0,0.0002591,9]
[320660880,1711488652572,-538.31677301,0.0002599,2]
[320660881,1711488652582,-309.86984272,0.00026,2]
[320660882,1711488652592,-1500.0,0.00026,2]
[320660883,1711488652602,-150000.0,0.00026,2]
[320660884,1711488652612,-153.0,0.00026064,2]
[320660885,1711488652621,-153.0,0.00026064,2]
[320660886,1711488652632,-153.0,0.00026064,2]
[320660887,1711488652642,-153.0,0.00026064,2]
[320660888,1711488652651,-153.0,0.00026064,2]
[320660889,1711488652661,-160.0,0.00026065,10]
[320660891,1711488652671,-500.0,0.00026076,30]
[320660893,1711488652680,-500.0,0.00026076,30]
[320660894,1711488652690,-158.0,0.00026076,30]
[320660896,1711488652699,-2999.3,0.0002612,2]
[320660898,1711488652708,-200.0,0.00026174,120]
[320660900,1711488652718,-303.0,0.0002618,2]
[320660901,1711488652727,-301.0,0.0002618,2]
[320660903,1711488652737,-300.0,0.0002618,2]
[320660905,1711488652749,-151.88676171,0.00026207,2]
[320660907,1711488652759,-160.0,0.00026221,11]
[320660909,1711488652769,-160.0,0.00026377,12]
[320660911,1711488652780,-998.0,0.00026458,2]
[320660913,1711488652790,-996.0,0.00026458,2]
[320660915,1711488652801,-998.0,0.00026458,2]
[320660917,1711488652811,-9361.52452142,0.00026477,30]
[320660926,1711488652950,-638.47547858,0.00026477,30]
[320660928,1711488652960,-2606.48,0.00026477,30]
[320660930,1711488652970,-543.0,0.00026477,30]
[320660931,1711488652980,-153.0,0.00026508,2]
[320660934,1711488652990,-153.0,0.00026508,2]
[320660936,1711488653000,-160.0,0.00026533,13]
[320660938,1711488653010,-160.0,0.00026688,14]
[320660939,1711488653020,-208.0990373,0.00026781,30]
[320660941,1711488653031,-160.0,0.00026844,15]
[320660943,1711488653041,-153.0,0.00026888,2]
[320660945,1711488653051,-153.0,0.00026888,2]
[320660947,1711488653061,-153.0,0.00026888,2]
[320660949,1711488653071,-153.0,0.00026888,2]
[320660951,1711488653080,-153.0,0.00026888,2]
[320660953,1711488653089,-200.9022208,0.00026888,2]
[320660955,1711488653099,-192.31020586,0.00026998,2]
[320660957,1711488653109,-1619.429426,0.00027,2]
[320660958,1711488653119,-155.14739002,0.00027,2]
[320660959,1711488653128,-196.66888278,0.00027,2]
[320660960,1711488653138,-160.0,0.00027,16]
[320660961,1711488653148,-160.0,0.00027156,17]
[320660962,1711488653157,-151.88676171,0.00027207,2]
[320660963,1711488653166,-160.0,0.00027312,18]
[320660964,1711488653176,-13998.0,0.00027329,4]
[320660965,1711488653186,-30211.58023324,0.00027374,5]
[320660969,1711488653305,-500.0,0.00019178,2]
[320660971,1711488653318,-500.0,0.00021917,2]
[320660973,1711488653327,-500.0,0.00024657,2]
[320660975,1711488653336,-500.0,0.00024657,2]
[320660977,1711488653346,-44025.93951587,0.00027374,5]
[320660979,1711488653356,-500.0,0.00027397,2]
[320660981,1711488653365,-3257.55867784,0.00027397,2]
[320660982,1711488653374,-3257.55867784,0.00027397,2]
[320660984,1711488653384,-3257.55867784,0.00027397,2]
[320660986,1711488653394,-940.73846915,0.00027397,2]
[320661030,1711488653803,-3510.35507536,0.00019176,2]
[320661033,1711488653831,-280.9180041,0.00019177,2]
[320661038,1711488653859,-3226.99230892,0.00019177,2]
[320661041,1711488653887,-500.0,0.00019178,2]
[320661080,1711488655017,6500.81,0.00019178,2]
[320661087,1711488655068,500.0,0.00019178,2]
[320661095,1711488655147,500.0,0.00019178,2]
[320661104,1711488655226,543.91,0.00019178,2]
[320661275,1711488656934,1106.51,0.00019178,2]
[320661713,1711488661384,2008.13,0.00019178,2]
[320664467,1711488703559,725.82944768,0.0002,5]
[320664468,1711488717557,378.15714224,0.0002,5]
[320664470,1711488739553,378.15714224,0.0002,5]
[320664471,1711488757541,378.15714224,0.0002,5]
[320664472,1711488777598,378.15714224,0.0002,5]
[320664473,1711488797578,378.15714224,0.0002,5]
[320664474,1711488817547,378.15714224,0.0002,5]
[320664475,1711488833609,378.15714224,0.0002,5]
[320664476,1711488855556,378.15714224,0.0002,5]
[320664477,1711488873556,378.15714224,0.0002,5]
[320664478,1711488892546,328.03008083,0.0002,5]
[320664479,1711489055941,151.01057074,0.00022044,30]
[320664768,1711489840602,-218.117924,0.000189,2]
[320664770,1711489840619,-411.0099078,0.00018977,2]
[320664772,1711489840635,-598.0205773,0.00018977,2]
[320665099,1711489843878,-601.81512769,0.00018977,2]
[320665101,1711489843888,-993.96137804,0.00018978,2]
[320665103,1711489843898,-305.17864111,0.00019076,2]
[320665105,1711489843907,-170.63807538,0.00019076,2]
[320665107,1711489843916,-155.0480649,0.00019076,2]
[320665109,1711489843925,-180.26624286,0.00019077,2]
[320665111,1711489843935,-2067.59095039,0.00019078,2]
[320665114,1711489843944,-25345.17,0.00019078,2]
[320665116,1711489843954,-500.0,0.00019178,2]
[320665118,1711489843962,-500.0,0.00019178,2]
[320665120,1711489843972,-500.0,0.00019178,2]
[320665122,1711489843982,-500.0,0.00019178,2]
[320665124,1711489843991,-619.43,0.00019178,2]
[320665126,1711489844001,-500.0,0.00019178,2]
[320665128,1711489844010,-500.0,0.00019178,2]
[320665130,1711489844019,-500.0,0.00019178,2]
[320665132,1711489844028,-500.0,0.00019178,2]
[320665134,1711489844037,-500.0,0.00019178,2]
[320665136,1711489844047,-500.0,0.00019178,2]
[320665138,1711489844056,-614.97,0.00019178,2]
[320665140,1711489844065,-590.49,0.00019178,2]
[320665142,1711489844074,-500.0,0.00019178,2]
[320665144,1711489844083,-932.26,0.00019178,2]
[320665146,1711489844092,-500.0,0.00019178,2]
[320665148,1711489844101,-500.0,0.00019178,2]
[320665150,1711489844110,-500.0,0.00019178,2]
[320665152,1711489844119,-561.46,0.00019178,2]
[320665154,1711489844128,-686.71,0.00019178,2]
[320665156,1711489844138,-500.0,0.00019178,2]
[320665158,1711489844147,-500.0,0.00019178,2]
[320665160,1711489844156,-544.79,0.00019178,2]
[320665162,1711489844165,-500.0,0.00019178,2]
[320665164,1711489844174,-500.0,0.00019178,2]
[320665166,1711489844183,-500.0,0.00019178,2]
[320665168,1711489844192,-500.0,0.00019178,2]
[320665169,1711489844201,-500.0,0.00019178,2]
[320665172,1711489844210,-508.54,0.00019178,2]
[320665173,1711489844220,-925.99,0.00019178,2]
[320665176,1711489844229,-2258.48,0.00019178,2]
[320665178,1711489844239,-500.0,0.00019178,2]
[320665179,1711489844249,-500.0,0.00019178,2]
[320665181,1711489844259,-500.0,0.00019178,2]
[320665183,1711489844268,-380.90518397,0.00019178,2]
[320665185,1711489844277,-1605.37,0.00019178,2]
[320665187,1711489844287,-500.0,0.00019178,2]
[320665188,1711489844296,-500.0,0.00019178,2]
[320665190,1711489844305,-500.0,0.00019178,2]
[320665192,1711489844314,-500.0,0.00019178,2]
[320665194,1711489844327,-500.0,0.00019178,2]
[320665196,1711489844336,-500.0,0.00019178,2]
[320665198,1711489844345,-500.0,0.00019178,2]
[320665200,1711489844354,-579.86,0.00019178,2]
[320665202,1711489844363,-500.0,0.00019178,2]
[320665204,1711489844372,-516.32,0.00019178,2]
[320665206,1711489844382,-500.0,0.00019178,2]
[320665207,1711489844391,-249.12712315,0.00019178,2]
[320665209,1711489844401,-681.1,0.00019178,2]
[320665211,1711489844410,-863.3,0.00019178,2]
[320665213,1711489844418,-500.0,0.00019178,2]
[320665215,1711489844428,-500.0,0.00019178,2]
[320665217,1711489844437,-500.0,0.00019178,2]
[320665219,1711489844446,-500.0,0.00019178,2]
[320665220,1711489844455,-1564.11,0.00019178,2]
[320665222,1711489844465,-500.0,0.00019178,2]
[320665224,1711489844474,-2225.72,0.00019178,2]
[320665226,1711489844483,-500.0,0.00019178,2]
[320665228,1711489844493,-500.0,0.00019178,2]
[320665230,1711489844503,-585.87,0.00019178,2]
[320665231,1711489844512,-2516.17,0.00019178,2]
[320665233,1711489844521,-642.42,0.00019178,2]
[320665235,1711489844530,-235.64530025,0.00019178,2]
[320665237,1711489844539,-525.91498456,0.00019178,2]
[320665239,1711489844548,-500.0,0.00019178,2]
[320665241,1711489844560,-500.0,0.00019178,2]
[320665243,1711489844568,-500.0,0.00019178,2]
[320665245,1711489844577,-590.62,0.00019178,2]
[320665247,1711489844586,-680.78,0.00019178,2]
[320665248,1711489844595,-500.0,0.00019178,2]
[320665250,1711489844605,-1014.91,0.00019178,2]
[320665252,1711489844614,-1031.5,0.00019178,2]
[320665254,1711489844623,-500.0,0.00019178,2]
[320665256,1711489844632,-500.0,0.00019178,2]
[320665258,1711489844641,-500.0,0.00019178,2]
[320665260,1711489844650,-500.0,0.00019178,2]
[320665261,1711489844660,-500.0,0.00019178,2]
[320665263,1711489844669,-500.0,0.00019178,2]
[320665265,1711489844678,-500.0,0.00019178,2]
[320665267,1711489844687,-500.0,0.00019178,2]
[320665269,1711489844696,-500.0,0.00019178,2]
[320665271,1711489844705,-500.0,0.00019178,2]
[320665273,1711489844714,-560.88,0.00019178,2]
[320665274,1711489844723,-527.13748397,0.00019178,2]
[320665276,1711489844732,-500.0,0.00019178,2]
[320665278,1711489844740,-500.0,0.00019178,2]
[320665280,1711489844750,-2429.01,0.00019178,2]
[320665282,1711489844759,-500.0,0.00019178,2]
[320665284,1711489844768,-500.0,0.00019178,2]
[320665286,1711489844778,-500.0,0.00019178,2]
[320665288,1711489844787,-500.0,0.00019178,2]
[320665290,1711489844796,-500.0,0.00019178,2]
[320665292,1711489844805,-549.63,0.00019178,2]
[320665293,1711489844814,-500.0,0.00019178,2]
[320665295,1711489844823,-500.0,0.00019178,2]
[320665297,1711489844832,-2241.56,0.00019178,2]
[320665299,1711489844842,-500.0,0.00019178,2]
[320665301,1711489844851,-500.0,0.00019178,2]
[320665303,1711489844861,-507.62344159,0.00019178,2]
[320665305,1711489844870,-500.0,0.00019178,2]
[320665306,1711489844879,-500.0,0.00019178,2]
[320665308,1711489844888,-500.0,0.00019178,2]
[320665310,1711489844898,-500.0,0.00019178,2]
[320665312,1711489844907,-422.69903533,0.00019178,2]
[320665314,1711489844916,-500.0,0.00019178,2]
[320665316,1711489844924,-500.0,0.00019178,2]
[320665318,1711489844933,-533.79,0.00019178,2]
[320665320,1711489844942,-702.72,0.00019178,2]